bitfinex-derivatives/quotes_BNBF0:USTF0_20251002
["timestamp","ask_amount","ask_price","bid_price","bid_amount"]
[1759432121925,0.83891724,1069.7,1068.3,1.86475301]
[1759432123026,0.83891724,1069.8,1068.3,2.48751825]
[1759432123826,0.83891724,1069.9,1068.3,2.48751825]
[1759432124229,0.83891724,1070.0,1068.3,2.48751825]
[1759432125437,0.83891724,1070.0,1068.4,0.62276524]
[1759432127440,0.83891724,1069.9,1068.4,0.62276524]
[1759432127938,0.83891724,1069.7,1068.4,0.62276524]
[1759432128336,0.83891724,1069.8,1068.3,2.48751825]
[1759432128737,0.83891724,1069.7,1068.3,2.48751825]
[1759432130743,0.83891724,1069.7,1068.3,1.86475301]
[1759432131039,0.1627054,1070.4,1068.3,1.86475301]
[1759432131040,0.83891724,1069.6,1068.3,1.86475301]
[1759432131544,0.83891724,1069.4,1068.3,1.86475301]
[1759432132642,2.25803823,1070.4,1068.3,1.86475301]
[1759432132643,0.83891724,1069.5,1068.3,1.86475301]
[1759432133342,0.83891724,1069.7,1068.3,1.86475301]
[1759432133948,0.83891724,1069.8,1068.3,1.86475301]
[1759432134741,0.83891724,1069.7,1068.3,1.86475301]
[1759432135547,0.83891724,1069.5,1068.3,1.86475301]
[1759432136343,0.83891724,1069.4,1068.3,1.86475301]
[1759432137850,0.83891724,1069.5,1068.3,1.86475301]
[1759432138245,0.83891724,1069.4,1068.3,1.86475301]
[1759432138851,0.83891724,1069.5,1068.3,1.86475301]
[1759432139950,0.83891724,1069.6,1068.3,1.86475301]
[1759432142154,0.83891724,1069.5,1068.3,1.86475301]
[1759432142448,0.83891724,1069.5,1068.3,2.48751825]
[1759432142650,0.83891724,1069.6,1068.3,2.48751825]
[1759432143150,0.83891724,1069.6,1068.4,0.62276524]
[1759432143750,0.83891724,1069.7,1068.3,2.48751825]
[1759432144651,0.83891724,1069.8,1068.4,0.62276524]
[1759432144951,0.83891724,1069.9,1068.4,0.62276524]
[1759432146053,0.83891724,1069.9,1068.5,0.62276524]
[1759432146752,1.2571997,1070.2,1068.5,0.62276524]
[1759432146753,0.83891724,1070.0,1068.5,0.62276524]
[1759432147152,0.83891724,1070.0,1068.6,0.62276524]
[1759432147354,0.83891724,1070.0,1068.5,0.62276524]
[1759432147654,0.83891724,1070.1,1068.5,0.62276524]
[1759432149659,0.83891724,1070.0,1068.4,0.62276524]
[1759432150054,0.83891724,1070.0,1068.3,2.48751825]
[1759432150556,0.83891724,1070.0,1068.4,0.62276524]
[1759432151357,0.83891724,1070.1,1068.3,2.48751825]
[1759432152361,0.83891724,1070.1,1068.4,0.62276524]
[1759432152763,0.83891724,1070.2,1068.5,0.62276524]
[1759432155862,0.83891724,1070.0,1068.5,0.62276524]
[1759432159363,0.83891724,1070.0,1068.4,0.62276524]
[1759432159662,0.83891724,1070.1,1068.5,0.62276524]
[1759432159865,0.83891724,1070.1,1068.4,0.62276524]
[1759432162869,0.83891724,1070.0,1068.4,0.62276524]
[1759432163070,0.83891724,1070.0,1068.3,2.48751825]
[1759432164366,0.83891724,1070.1,1068.3,2.48751825]
[1759432166069,0.83891724,1070.1,1068.4,0.62276524]
[1759432166365,0.83891724,1070.1,1068.3,2.48751825]
[1759432166668,0.83891724,1070.0,1068.3,2.48751825]
[1759432167066,0.83891724,1070.1,1068.4,0.62276524]
[1759432167770,0.83891724,1070.0,1068.4,0.62276524]
[1759432168269,0.83891724,1070.0,1068.3,2.48751825]
[1759432169370,0.83891724,1069.9,1068.3,2.48751825]
[1759432169864,0.83891724,1069.9,1068.4,0.62276524]
[1759432170967,1.2571997,1070.1,1068.3,2.48751825]
[1759432170968,0.83891724,1069.8,1068.3,2.48751825]
[1759432173064,0.83891724,1069.9,1068.3,2.48751825]
[1759432173764,0.83891724,1069.8,1068.4,0.62276524]
[1759432174469,0.83891724,1069.9,1068.5,0.62276524]
[1759432174865,0.83891724,1070.0,1068.5,0.62276524]
[1759432175267,0.83891724,1070.0,1068.3,2.69113989]
[1759432175470,0.83891724,1070.0,1068.5,0.62544861]
[1759432175670,0.83891724,1070.0,1068.6,1.88469803]
[1759432176270,0.83891724,1070.1,1068.6,1.88469803]
[1759432181270,0.83891724,1069.9,1068.6,1.88469803]
[1759432181474,0.83891724,1069.8,1068.6,1.88469803]
[1759432183975,0.83891724,1069.9,1068.6,1.88469803]
[1759432184271,0.83891724,1069.8,1068.6,1.88469803]
[1759432184872,0.83891724,1070.0,1068.6,1.88469803]
[1759432185974,0.83891724,1070.3,1068.6,1.88469803]
[1759432186170,0.83891724,1070.2,1068.6,1.88469803]
[1759432186375,0.83891724,1070.3,1068.6,1.88469803]
[1759432193779,0.83891724,1070.1,1068.6,1.88469803]
[1759432197180,0.83891724,1070.0,1068.6,1.88469803]
[1759432197381,0.83891724,1070.1,1068.6,1.88469803]
[1759432198184,1.2571997,1070.3,1068.6,1.88469803]
[1759432198185,0.83891724,1070.0,1068.6,1.88469803]
[1759432202589,0.83891724,1070.0,1068.6,2.51014664]
[1759432202787,0.83891724,1069.8,1068.6,1.88469803]
[1759432202992,0.83891724,1069.7,1068.6,1.88469803]
[1759432203186,0.83891724,1069.8,1068.6,1.88469803]
[1759432204389,0.83891724,1069.9,1068.6,1.88469803]
[1759432205491,0.83891724,1069.8,1068.6,1.88469803]
[1759432205691,0.83891724,1070.3,1068.6,1.88469803]
[1759432206888,0.83891724,1070.2,1068.6,1.88469803]
[1759432207090,0.83891724,1070.3,1068.6,1.88469803]
[1759432209487,0.83891724,1070.2,1068.6,1.88469803]
[1759432209991,0.83891724,1070.3,1068.6,1.88469803]
[1759432210189,0.83891724,1070.2,1068.6,1.88469803]
[1759432210893,0.83891724,1070.7,1069.0,0.62544861]
[1759432211293,0.83891724,1070.8,1069.0,0.62544861]
[1759432211490,0.83891724,1070.7,1069.0,0.62544861]
[1759432212295,0.83891724,1070.6,1069.1,0.62544861]
[1759432212589,0.83891724,1070.6,1069.2,0.62544861]
[1759432212791,0.83891724,1070.8,1069.4,0.62544861]
[1759432213292,0.83891724,1070.9,1069.3,0.62544861]
[1759432213492,0.83891724,1070.8,1069.4,0.62544861]
[1759432213896,0.83891724,1071.0,1069.4,0.62544861]
[1759432214096,0.83891724,1071.1,1069.4,0.62544861]
[1759432214297,0.83891724,1071.8,1069.2,0.62544861]
[1759432214493,0.83891724,1071.5,1069.7,0.62544861]
[1759432215400,0.83891724,1071.6,1069.6,0.62544861]
[1759432215596,0.83891724,1071.6,1069.5,0.62544861]
[1759432215999,0.83891724,1071.5,1069.5,0.62544861]
[1759432216294,0.83891724,1071.6,1069.5,0.62544861]
[1759432216495,0.83891724,1071.6,1069.4,0.62544861]
[1759432217096,0.83891724,1071.8,1069.2,0.62544861]
[1759432217300,0.83891724,1071.9,1069.2,0.62544861]
[1759432218198,1.00143192,1072.0,1069.2,0.62544861]
[1759432218401,1.00143192,1072.0,1069.1,0.62544861]
[1759432219300,0.83891724,1071.8,1069.1,0.62544861]
[1759432219498,0.83891724,1071.8,1069.2,0.62544861]
[1759432219703,0.83891724,1071.7,1069.2,0.62544861]
[1759432221303,0.83891724,1071.7,1069.1,0.62544861]
[1759432221903,0.83891724,1071.8,1069.1,0.62544861]
[1759432223001,0.83891724,1071.7,1069.1,0.62544861]
[1759432223498,0.83891724,1071.8,1069.0,0.62544861]
[1759432224103,0.83891724,1071.8,1069.1,0.62544861]
[1759432224406,0.83891724,1071.8,1069.0,0.62544861]
[1759432224603,0.83891724,1071.7,1069.0,0.62544861]
[1759432224809,0.83891724,1071.8,1069.0,0.62544861]
[1759432225003,0.16251468,1072.0,1068.7,0.62544861]
[1759432225304,0.83891724,1071.7,1068.8,0.62544861]
[1759432225809,0.83891724,1071.5,1068.6,2.51014664]
[1759432226210,0.83891724,1071.4,1068.6,2.51014664]
[1759432229309,0.83891724,1071.4,1068.6,1.88469803]
[1759432230013,0.83891724,1071.5,1068.6,2.51014664]
[1759432230212,0.83891724,1071.4,1068.6,1.88469803]
[1759432230412,0.83891724,1071.5,1068.6,1.88469803]
[1759432232113,0.83891724,1071.4,1068.6,2.51014664]
[1759432232314,0.83891724,1071.5,1068.7,0.62544861]
[1759432232610,0.83891724,1071.4,1068.7,0.62544861]
[1759432234710,0.83891724,1071.4,1068.6,2.51014664]
[1759432234915,0.83891724,1071.5,1068.6,1.88469803]
[1759432237713,0.83891724,1071.8,1068.6,1.88469803]
[1759432237918,0.83891724,1071.9,1068.6,1.88469803]
[1759432238416,0.83891724,1071.8,1068.6,1.88469803]
[1759432238620,0.83891724,1071.7,1068.6,1.88469803]
[1759432239316,1.41971438,1072.0,1068.6,1.88469803]
[1759432239317,0.83891724,1071.6,1068.6,1.88469803]
[1759432239519,0.83891724,1071.7,1068.6,1.88469803]
[1759432240420,0.83891724,1071.6,1068.6,1.88469803]
[1759432241720,0.83891724,1071.5,1068.6,2.51014664]
[1759432242418,0.83891724,1071.5,1068.7,0.62544861]
[1759432243820,0.83891724,1071.6,1068.7,0.62544861]
[1759432244324,0.83891724,1071.5,1068.7,0.62544861]
[1759432244924,0.83891724,1071.6,1068.7,0.62544861]
[1759432245520,0.83891724,1071.7,1068.8,0.62544861]
[1759432248424,0.83891724,1071.4,1068.9,0.62544861]
[1759432248621,0.83891724,1071.4,1069.0,0.62544861]
[1759432249026,0.83891724,1071.4,1068.9,0.62544861]
[1759432249326,0.83891724,1071.4,1069.0,0.62544861]
[1759432250028,0.83891724,1071.5,1068.9,0.62544861]
[1759432250529,0.83891724,1071.6,1068.9,0.62544861]
[1759432250729,0.83891724,1071.5,1068.9,0.62544861]
[1759432250928,0.83891724,1071.6,1068.9,0.62544861]
[1759432251228,0.83891724,1071.5,1068.9,0.62544861]
[1759432252330,0.83891724,1071.5,1069.0,0.62544861]
[1759432253531,0.83891724,1071.6,1069.1,0.62544861]
[1759432253832,0.83891724,1071.7,1069.1,0.62544861]
[1759432255033,0.83891724,1071.6,1069.1,0.62544861]
[1759432255431,0.83891724,1071.8,1069.1,0.62544861]
[1759432256933,0.83891724,1071.9,1069.1,0.62544861]
[1759432260439,1.00143192,1072.0,1069.1,0.62544861]
[1759432262340,1.00143192,1072.0,1069.2,0.62544861]
[1759432263434,0.83891724,1071.9,1069.2,0.62544861]
[1759432264439,0.83891724,1071.9,1069.3,0.62544861]
[1759432264638,0.16251468,1072.0,1069.1,0.62544861]
[1759432265442,0.16251468,1072.0,1069.2,0.62544861]
[1759432266343,0.16251468,1072.0,1069.3,0.62544861]
[1759432268337,0.16251468,1072.0,1069.4,0.62544861]
[1759432268844,0.83891724,1071.6,1069.6,0.62544861]
[1759432269339,0.83891724,1071.6,1069.7,0.62544861]
[1759432269842,0.83891724,1071.7,1069.7,0.62544861]
[1759432270343,0.83891724,1071.6,1069.8,0.62544861]
[1759432270539,0.83891724,1071.5,1069.9,0.62544861]
[1759432270739,0.83891724,1071.5,1069.8,0.62544861]
[1759432271138,0.83891724,1071.6,1069.8,0.62544861]
[1759432271442,0.83891724,1071.5,1069.8,0.62544861]
[1759432271640,0.83891724,1071.5,1069.9,0.62544861]
[1759432272244,0.83891724,1071.5,1069.8,0.62544861]
[1759432272444,0.83891724,1071.5,1069.9,0.62544861]
[1759432273544,0.83891724,1071.4,1069.9,0.62544861]
[1759432273846,0.83891724,1071.3,1069.9,0.62544861]
[1759432274742,0.83891724,1071.3,1070.0,0.62544861]
[1759432275042,0.83891724,1071.5,1069.9,0.62544861]
[1759432276443,0.16251468,1072.0,1069.9,0.62544861]
[1759432276444,0.83891724,1071.6,1069.9,0.62544861]
[1759432277844,0.83891724,1071.7,1069.8,0.62544861]
[1759432280950,0.83891724,1071.9,1069.8,0.62544861]
[1759432282644,0.83891724,1071.8,1069.9,0.62544861]
[1759432283345,0.83891724,1071.8,1070.0,0.62544861]
[1759432285251,0.83891724,1071.9,1069.9,0.62544861]
[1759432286355,0.83891724,1071.8,1070.0,0.62544861]
[1759432286555,0.83891724,1071.5,1070.0,0.62544861]
[1759432287052,0.83891724,1071.6,1070.0,0.62544861]
[1759432288650,0.83891724,1071.7,1070.0,0.62544861]
[1759432288854,0.83891724,1071.8,1070.0,0.62544861]
[1759432295064,0.83891724,1071.9,1069.9,0.62544861]
[1759432295263,0.83891724,1071.9,1070.0,0.62544861]
[1759432295663,0.83891724,1072.0,1069.9,0.62544861]
[1759432296062,0.83891724,1071.9,1069.9,0.62944861]
[1759432296660,0.83891724,1071.7,1070.0,1.83282042]
[1759432296863,0.83891724,1071.6,1070.0,1.83282042]
[1759432297261,0.83891724,1071.5,1070.0,1.83282042]
[1759432298569,0.83891724,1071.4,1070.0,2.45826903]
[1759432299968,0.83891724,1071.4,1070.0,1.83282042]
[1759432300165,0.1624502,1072.2,1070.0,1.83282042]
[1759432300166,0.83891724,1071.5,1070.0,1.83282042]
[1759432300770,0.83891724,1071.6,1070.0,1.83282042]
[1759432303270,0.83891724,1071.5,1070.0,1.83282042]
[1759432304269,0.83891724,1071.4,1070.0,1.83282042]
[1759432305074,0.83891724,1071.3,1070.0,1.83282042]
[1759432305573,0.83891724,1071.5,1070.0,1.83282042]
[1759432306871,0.83891724,1071.4,1070.0,1.83282042]
[1759432307872,0.83891724,1071.3,1070.0,1.83282042]
[1759432308568,0.83891724,1071.2,1070.0,1.83282042]
[1759432315574,0.83891724,1071.3,1070.0,1.83282042]
[1759432319080,0.1624502,1072.2,1070.0,1.83282042]
[1759432319081,0.83891724,1071.4,1070.0,1.83282042]
[1759432319284,0.83891724,1071.5,1070.0,1.83282042]
[1759432320684,0.83891724,1071.6,1070.0,1.83282042]
[1759432321883,0.83891724,1071.5,1070.1,0.62351375]
[1759432325286,0.83891724,1071.6,1070.2,0.62351375]
[1759432327092,0.83891724,1071.7,1070.1,0.62351375]
[1759432327891,0.83891724,1071.7,1070.2,0.62351375]
[1759432329191,0.83891724,1071.8,1070.1,0.62351375]
[1759432330594,0.83891724,1071.9,1070.1,0.62351375]
[1759432335795,0.83891724,1071.7,1070.2,0.62351375]
[1759432335996,0.83891724,1071.8,1070.2,0.62351375]
[1759432336998,0.83891724,1072.0,1070.4,0.62351375]
[1759432338204,0.83891724,1071.9,1070.4,0.62351375]
[1759432338704,0.83891724,1071.9,1070.0,1.83282042]
[1759432338705,0.83891724,1072.0,1070.5,0.62351375]
[1759432340405,0.83891724,1072.2,1070.5,0.62351375]
[1759432340901,0.83891724,1072.2,1070.4,0.62351375]
[1759432341800,0.83891724,1072.3,1070.4,0.62351375]
[1759432342700,0.83891724,1072.2,1070.4,0.62351375]
[1759432345803,0.83891724,1072.3,1070.4,0.62351375]
[1759432346707,0.83891724,1072.3,1070.4,0.61983212]
[1759432346903,0.83891724,1072.4,1070.5,1.79715773]
[1759432350309,0.83891724,1072.3,1070.5,1.79715773]
[1759432352412,0.83891724,1072.4,1070.5,1.79715773]
[1759432353512,0.83891724,1072.5,1070.5,1.79715773]
[1759432353914,0.83891724,1072.4,1070.5,1.79715773]
[1759432354714,1.41958622,1072.7,1070.5,1.79715773]
[1759432354715,0.83891724,1072.5,1070.5,1.79715773]
[1759432354917,0.83891724,1072.3,1070.5,1.79715773]
[1759432355217,0.83891724,1072.4,1070.5,1.79715773]
[1759432356915,0.83891724,1072.5,1070.5,1.79715773]
[1759432358215,0.83891724,1072.6,1070.5,1.79715773]
[1759432358518,0.83891724,1072.8,1070.6,0.61983212]
[1759432359017,0.83891724,1073.0,1070.7,0.61983212]
[1759432359419,0.83891724,1072.9,1070.7,0.61983212]
[1759432360017,0.83891724,1073.0,1070.7,0.61983212]
[1759432361220,0.83891724,1073.0,1070.6,0.61983212]
[1759432362422,0.83891724,1073.1,1070.7,0.61983212]
[1759432363218,0.83891724,1073.3,1070.8,0.61983212]
[1759432363518,0.83891724,1073.2,1070.8,0.61983212]
[1759432365119,0.83891724,1073.2,1070.7,0.61983212]
[1759432365820,0.83891724,1073.3,1070.7,0.61983212]
[1759432368226,0.83891724,1073.4,1070.7,0.61983212]
[1759432369126,0.83891724,1073.4,1070.6,0.61983212]
[1759432369927,0.83891724,1073.4,1070.7,0.61983212]
[1759432370728,0.83891724,1073.4,1070.6,0.61983212]
[1759432373226,0.83891724,1073.4,1070.7,0.61983212]
[1759432373429,1.00117807,1073.6,1070.5,1.79715773]
[1759432374028,1.00117807,1073.6,1070.6,0.61983212]
[1759432374826,0.83891724,1073.5,1070.6,0.61983212]
[1759432376231,0.83891724,1073.5,1070.7,0.61983212]
[1759432376432,0.83891724,1073.3,1070.6,0.61983212]
[1759432378232,0.83891724,1073.3,1070.7,0.61983212]
[1759432379029,0.83891724,1073.4,1070.6,0.61983212]
[1759432379333,0.16226083,1073.6,1070.7,0.61983212]
[1759432379334,0.83891724,1073.5,1070.7,0.61983212]
[1759432379932,0.83891724,1073.5,1070.8,0.61983212]
[1759432380835,0.83891724,1073.3,1070.8,0.61983212]
[1759432381435,0.83891724,1073.3,1070.9,1.72547287]
[1759432382834,0.83891724,1073.4,1070.9,1.72547287]
[1759432383335,0.83891724,1073.4,1071.0,0.614599]
[1759432383537,0.83891724,1073.5,1071.0,0.614599]
[1759432384334,0.16223285,1073.8,1070.9,1.72547287]
[1759432384633,0.83891724,1073.6,1071.1,0.614599]
[1759432384837,0.83891724,1073.6,1071.2,0.614599]
[1759432385238,0.83891724,1073.7,1071.1,0.614599]
[1759432385838,0.83891724,1073.8,1071.0,0.614599]
[1759432386336,0.83891724,1073.7,1071.0,0.614599]
[1759432386741,1.00111568,1074.0,1071.0,0.614599]
[1759432388543,0.83891724,1073.9,1071.0,0.614599]
[1759432391145,0.83891724,1073.8,1071.1,0.614599]
[1759432392146,0.83891724,1073.7,1071.1,0.614599]
[1759432392645,0.83891724,1073.6,1071.2,0.614599]
[1759432393447,0.83891724,1073.7,1071.2,0.614599]
[1759432395846,1.00111568,1074.0,1071.4,0.614599]
[1759432396049,0.83891724,1074.0,1071.4,0.614599]
[1759432397051,0.83891724,1074.1,1071.3,0.614599]
[1759432397350,0.83891724,1073.9,1071.2,0.614599]
[1759432397648,0.83891724,1073.8,1071.3,0.614599]
[1759432398149,0.83891724,1073.7,1071.3,0.614599]
[1759432398349,0.83891724,1073.8,1071.3,0.614599]
[1759432398552,0.83891724,1073.6,1071.3,0.614599]
[1759432398849,0.83891724,1073.7,1071.3,0.614599]
[1759432400156,0.83891724,1073.8,1071.3,0.614599]
[1759432400457,0.83891724,1073.8,1071.1,0.82638688]
[1759432400458,0.83891724,1073.8,1071.4,0.614599]
[1759432401058,1.00107751,1074.2,1071.2,0.614599]
[1759432401257,0.83891724,1074.1,1071.2,0.614599]
[1759432401459,0.83891724,1073.6,1071.4,0.614599]
[1759432401758,0.83891724,1073.7,1071.3,0.614599]
[1759432402059,0.83891724,1073.6,1071.3,0.614599]
[1759432403157,0.83891724,1073.7,1071.3,0.614599]
[1759432405661,0.83891724,1073.8,1071.3,0.614599]
[1759432405857,0.83891724,1073.8,1071.4,0.614599]
[1759432407258,0.83891724,1073.8,1071.5,0.614599]
[1759432407561,0.83891724,1073.8,1071.4,0.614599]
[1759432408357,0.83891724,1073.8,1071.5,0.614599]
[1759432409159,0.83891724,1073.7,1071.5,0.614599]
[1759432409358,0.83891724,1073.8,1071.6,0.614599]
[1759432410563,0.83891724,1073.7,1071.6,0.614599]
[1759432411160,0.83891724,1074.0,1071.5,0.614599]
[1759432414063,0.83891724,1073.9,1071.6,0.614599]
[1759432414567,0.83891724,1073.8,1071.6,0.614599]
[1759432415063,0.83891724,1073.9,1071.6,0.614599]
[1759432416267,1.41935997,1074.2,1071.6,0.614599]
[1759432416268,0.83891724,1074.0,1071.6,0.614599]
[1759432416468,0.83891724,1073.9,1071.6,0.614599]
[1759432416768,0.83891724,1073.5,1071.3,0.614599]
[1759432417068,0.83891724,1073.2,1071.3,0.614599]
[1759432417264,0.83891724,1073.2,1071.4,0.614599]
[1759432417969,0.83891724,1073.3,1071.4,0.614599]
[1759432418269,0.83891724,1073.2,1071.4,0.614599]
[1759432418668,0.83891724,1073.2,1071.5,0.614599]
[1759432419067,0.83891724,1073.3,1071.7,0.614599]
[1759432420069,0.83891724,1073.4,1071.6,0.614599]
[1759432421172,0.83891724,1073.4,1071.7,0.614599]
[1759432421373,0.83891724,1073.5,1071.8,0.614599]
[1759432421775,0.83891724,1073.5,1071.7,0.614599]
[1759432421969,0.83891724,1073.4,1071.7,0.614599]
[1759432422273,0.83891724,1073.3,1071.7,0.614599]
[1759432424074,0.83891724,1073.2,1071.7,0.614599]
[1759432425170,0.83891724,1073.3,1071.7,0.614599]
[1759432425571,0.83891724,1073.3,1071.8,0.614599]
[1759432425870,0.83891724,1073.5,1071.7,0.614599]
[1759432426972,0.83891724,1073.6,1071.7,0.614599]
[1759432427176,0.83891724,1073.6,1071.8,0.614599]
[1759432427377,0.83891724,1073.5,1071.8,0.614599]
[1759432427578,0.83891724,1073.6,1071.8,0.614599]
[1759432427974,0.83891724,1073.5,1071.8,0.614599]
[1759432428179,0.83891724,1073.6,1071.8,0.614599]
[1759432428478,0.83891724,1073.4,1071.8,0.614599]
[1759432428679,0.83891724,1073.5,1071.9,0.614599]
[1759432429277,0.83891724,1073.5,1071.7,0.614599]
[1759432429777,0.83891724,1073.4,1071.7,0.614599]
[1759432429980,0.83891724,1073.2,1071.7,0.614599]
[1759432430179,0.83891724,1073.0,1071.6,0.614599]
[1759432430879,0.83891724,1073.4,1071.4,0.614599]
[1759432431078,0.83891724,1073.3,1071.3,0.614599]
[1759432433182,0.83891724,1073.3,1071.4,0.614599]
[1759432433883,0.83891724,1073.3,1071.3,0.614599]
[1759432434184,0.83891724,1073.3,1071.4,0.614599]
[1759432435684,0.83891724,1073.2,1071.4,0.614599]
[1759432436179,0.83891724,1073.0,1071.5,0.614599]
[1759432437080,0.83891724,1072.9,1071.3,0.82638688]
[1759432437882,0.83891724,1073.3,1070.9,1.72547287]
[1759432438085,0.83891724,1073.4,1070.9,1.72547287]
[1759432438384,0.83891724,1073.3,1070.9,1.72547287]
[1759432438685,0.83891724,1073.4,1070.9,1.72547287]
[1759432439687,0.16216027,1074.2,1070.9,2.55185975]
[1759432439688,0.83891724,1073.2,1070.9,2.55185975]
[1759432440384,0.83891724,1073.1,1070.9,2.55185975]
[1759432441583,0.83891724,1073.1,1071.0,0.82638688]
[1759432441984,0.83891724,1073.0,1071.0,0.82638688]
[1759432444585,0.83891724,1072.9,1071.1,0.82638688]
[1759432445283,0.83891724,1073.1,1070.9,2.55185975]
[1759432446285,0.83891724,1073.2,1070.9,2.55185975]
[1759432447185,0.83891724,1073.1,1070.9,2.55185975]
[1759432447384,0.83891724,1073.2,1070.9,2.55185975]
[1759432447689,0.83891724,1073.1,1070.9,2.55185975]
[1759432448189,0.83891724,1073.2,1070.9,2.55185975]
[1759432448790,0.83891724,1073.0,1071.0,0.82638688]
[1759432448987,0.83891724,1072.9,1071.1,0.82638688]
[1759432450986,0.83891724,1073.0,1071.0,0.82638688]
[1759432453798,0.83891724,1073.1,1070.9,2.55185975]
[1759432455499,0.83891724,1073.0,1071.0,0.82638688]
[1759432456599,0.83891724,1072.9,1071.1,0.82638688]
[1759432459698,0.83891724,1072.9,1071.0,0.82638688]
[1759432461005,0.83891724,1073.0,1070.9,2.55185975]
[1759432461603,0.83891724,1073.0,1071.0,0.82638688]
[1759432462401,2.2574931,1074.2,1070.9,1.72547287]
[1759432462402,0.83891724,1073.1,1070.9,2.55185975]
[1759432462601,0.83891724,1073.1,1070.9,1.72547287]
[1759432463102,0.83891724,1073.1,1070.9,2.55185975]
[1759432463401,0.83891724,1073.1,1070.9,1.72547287]
[1759432464206,0.83891724,1073.1,1070.9,2.55185975]
[1759432464904,0.83891724,1073.1,1070.9,1.72547287]
[1759432465105,0.83891724,1073.1,1070.9,2.55185975]
[1759432466804,0.83891724,1073.0,1070.9,2.55185975]
[1759432467004,0.83891724,1072.9,1071.1,0.82638688]
[1759432468007,0.83891724,1073.1,1070.9,2.55185975]
[1759432468306,0.83891724,1073.0,1070.9,2.55185975]
[1759432468805,0.83891724,1073.1,1070.9,2.55185975]
[1759432469211,0.83891724,1073.0,1070.9,2.55185975]
[1759432472113,0.83891724,1072.9,1071.0,0.82638688]
[1759432474208,0.83891724,1072.8,1071.1,0.82638688]
[1759432478712,0.83891724,1072.8,1071.2,0.82638688]
[1759432479012,0.83891724,1072.8,1071.1,0.82638688]
[1759432480918,0.83891724,1073.0,1070.9,2.55185975]
[1759432481121,0.83891724,1072.5,1071.0,0.82638688]
[1759432481821,0.83891724,1072.5,1070.9,2.55185975]
[1759432482320,0.83891724,1073.0,1070.9,1.72547287]
[1759432482520,0.83891724,1073.0,1070.9,2.55185975]
[1759432482820,0.83891724,1073.1,1071.1,0.82638688]
[1759432484223,0.83891724,1073.0,1071.1,0.82638688]
[1759432484618,0.83891724,1073.1,1071.1,0.82638688]
[1759432485319,0.83891724,1072.8,1071.2,0.82638688]
[1759432485523,0.83891724,1072.8,1071.1,0.82638688]
[1759432486021,0.83891724,1072.7,1071.2,0.82638688]
[1759432487224,0.83891724,1072.6,1071.2,0.82638688]
[1759432487422,0.83891724,1072.7,1071.3,0.82638688]
[1759432487625,0.83891724,1072.7,1071.2,0.82638688]
[1759432487827,0.83891724,1072.9,1071.0,0.82638688]
[1759432488228,0.83891724,1072.9,1071.1,0.82638688]
[1759432488524,0.83891724,1073.1,1071.2,0.82638688]
[1759432488924,0.83891724,1073.1,1071.3,0.82638688]
[1759432489629,0.83891724,1073.0,1071.3,0.82638688]
[1759432491329,0.83891724,1073.0,1071.4,0.82638688]
[1759432491727,0.83891724,1073.0,1071.3,0.82638688]
[1759432492623,0.83891724,1073.0,1071.4,0.82638688]
[1759432493427,0.83891724,1072.9,1071.4,0.82638688]
[1759432495133,0.83891724,1073.0,1071.4,0.82638688]
[1759432495834,0.83891724,1073.1,1071.4,0.82638688]
[1759432496330,0.83891724,1073.2,1071.4,0.82638688]
[1759432497034,1.36259399,1073.1,1071.0,1.23958032]
[1759432497235,0.52367675,1073.0,1071.0,1.23958032]
[1759432497436,0.52367675,1072.9,1071.0,1.23958032]
[1759432497730,0.52367675,1072.8,1071.0,1.23958032]
[1759432497931,0.52367675,1072.7,1071.0,1.23958032]
[1759432498238,0.52367675,1072.6,1071.0,1.23958032]
[1759432498539,0.52367675,1072.5,1071.0,1.23958032]
[1759432498740,0.52367675,1072.4,1071.0,1.23958032]
[1759432498941,0.52367675,1072.3,1071.0,1.23958032]
[1759432499240,0.83891724,1073.1,1071.0,1.23958032]
[1759432499440,0.16216027,1074.2,1071.1,1.23958032]
[1759432499441,1.36134623,1073.0,1071.1,1.23958032]
[1759432499639,0.52242899,1072.9,1071.0,1.23958032]
[1759432499940,1.36134623,1072.8,1071.3,1.23958032]
[1759432500141,1.36134623,1072.7,1071.2,1.23958032]
[1759432500438,0.52242899,1072.6,1071.2,1.23958032]
[1759432500738,0.52242899,1072.5,1071.2,1.23958032]
[1759432500938,0.52242899,1072.4,1071.2,1.23958032]
[1759432501139,0.52242899,1072.4,1070.9,1.72547287]
[1759432501140,0.52242899,1072.3,1071.1,1.23958032]
[1759432501339,0.52242899,1072.2,1071.1,1.23958032]
[1759432501538,0.83891724,1072.8,1071.1,1.23958032]
[1759432501741,0.52247239,1072.7,1071.0,1.23958032]
[1759432502040,0.52247239,1072.6,1071.0,1.23958032]
[1759432502239,0.52247239,1072.5,1071.0,1.23958032]
[1759432502439,0.52247239,1072.4,1071.0,1.23958032]
[1759432502637,0.52247239,1072.3,1071.0,1.23958032]
[1759432502841,0.52247239,1072.2,1071.0,1.23958032]
[1759432503140,0.83891724,1072.8,1071.0,1.23958032]
[1759432503341,0.52247646,1072.7,1071.0,1.23958032]
[1759432503539,0.52247646,1072.6,1071.0,2.71544692]
[1759432503738,0.52247646,1072.5,1071.0,2.71544692]
[1759432503939,0.52247646,1072.4,1071.0,2.71544692]
[1759432504138,0.52247646,1072.3,1071.0,2.71544692]
[1759432504340,0.52247646,1072.2,1071.0,2.71544692]
[1759432504641,0.83891724,1072.8,1071.0,2.71544692]
[1759432504941,0.52247128,1072.7,1071.0,2.71544692]
[1759432505138,0.52247128,1072.6,1071.0,1.4758666]
[1759432505341,0.52247128,1072.5,1071.0,1.4758666]
[1759432505540,0.52247128,1072.4,1071.0,1.4758666]
[1759432505746,0.52247128,1072.3,1071.0,1.4758666]
[1759432505944,0.52247128,1072.2,1071.0,1.4758666]
[1759432506244,0.52247128,1072.1,1071.0,1.4758666]
[1759432506540,0.83891724,1072.8,1071.0,1.4758666]
[1759432506744,0.52249193,1072.7,1071.0,1.4758666]
[1759432506945,0.52249193,1072.6,1071.0,1.4758666]
[1759432507245,0.52249193,1072.5,1071.1,1.23958032]
[1759432507446,0.52249193,1072.4,1071.1,1.23958032]
[1759432507640,0.52249193,1072.3,1071.0,2.71544692]
[1759432507941,0.52249193,1072.2,1071.0,2.71544692]
[1759432508145,0.83891724,1072.8,1071.0,2.71544692]
[1759432508343,0.52246195,1072.7,1071.0,2.71544692]
[1759432508648,0.52246195,1072.6,1071.0,2.71544692]
[1759432508845,0.52246195,1072.5,1071.0,2.71544692]
[1759432509042,0.52246195,1072.4,1071.0,2.71544692]
[1759432509246,0.52246195,1072.3,1071.0,2.71544692]
[1759432509443,0.52246195,1072.2,1071.0,2.71544692]
[1759432509642,0.83891724,1072.8,1071.0,2.71544692]
[1759432509847,0.52246563,1072.7,1071.0,2.71544692]
[1759432510042,0.52246563,1072.6,1071.0,2.71544692]
[1759432510244,0.52246563,1072.5,1071.0,2.71544692]
[1759432510448,0.52246563,1072.4,1071.0,2.71544692]
[1759432510646,0.52246563,1072.3,1071.0,2.71544692]
[1759432510849,0.52246563,1072.2,1071.0,2.71544692]